bitfinex-derivatives/quotes_ETHF0:USTF0_20250520
["timestamp","ask_amount","ask_price","bid_price","bid_amount"]
[1747717609552,2.4843,2568.4,2568.3,1.2579]
[1747717609753,3.2628,2568.4,2568.3,1.2579]
[1747717609948,0.77854,2568.3,2568.0,3.98641]
[1747717610148,1.3748,2568.3,2568.1,2.03649]
[1747717610755,1.3748,2568.3,2568.2,0.77856]
[1747717611158,1.3748,2568.3,2568.1,2.03648]
[1747717611459,1.3748,2568.3,2568.2,0.77856]
[1747717613358,1.3748,2568.3,2568.1,2.03648]
[1747717613560,1.3748,2568.3,2568.2,0.77856]
[1747717613760,2.15334,2568.3,2568.1,1.2579]
[1747717614561,1.3748,2568.3,2568.1,2.03649]
[1747717614764,1.3748,2568.3,2568.1,1.2579]
[1747717614964,1.3748,2568.3,2568.1,2.03649]
[1747717615762,1.3748,2568.3,2568.2,0.77856]
[1747717616861,1.3748,2568.3,2568.1,2.03648]
[1747717617359,2.15333,2568.3,2568.2,1.3365]
[1747717617556,0.77857,2568.2,2567.9,0.77864]
[1747717617756,1.3334,2568.1,2567.9,0.77864]
[1747717618056,0.77866,2567.9,2567.8,9.7075]
[1747717618259,1.3334,2568.1,2567.6,4.25403703]
[1747717618560,0.77872,2567.7,2567.6,0.00583703]
[1747717618756,2.4822,2567.8,2567.6,0.00583703]
[1747717619359,2.4822,2567.8,2567.6,0.78457703]
[1747717619656,3.99209703,2568.6,2567.7,8.371]
[1747717619858,3.2078,2568.3,2567.7,10.7895]
[1747717620056,3.6041,2568.5,2567.7,10.7895]
[1747717620057,3.6041,2568.5,2567.9,3.2078]
[1747717620264,3.6041,2568.5,2568.0,1.3427]
[1747717620561,3.6041,2568.5,2568.2,0.77854]
[1747717620766,4.38258,2568.5,2568.3,1.3427]
[1747717621150,3.6041,2568.5,2568.3,1.3427]
[1747717622962,4.38258,2568.5,2568.3,1.3427]
[1747717623760,7.59038,2568.5,2568.3,1.3427]
[1747717624564,0.7785,2568.4,2568.3,1.3427]
[1747717624758,1.3432,2568.4,2568.3,1.3427]
[1747717625767,1.3432,2568.4,2568.3,2.12123]
[1747717626162,1.3432,2568.4,2568.3,1.3427]
[1747717626568,0.7786,2568.1,2567.8,1.93047]
[1747717626764,0.77862,2568.0,2567.7,9.453]
[1747717626962,1.3322,2567.9,2567.7,11.5644]
[1747717627267,1.3322,2567.9,2567.6,0.00583703]
[1747717627465,0.77872,2567.7,2567.6,0.00583703]
[1747717627966,2.11092,2567.7,2567.6,0.00583703]
[1747717628866,1.3322,2567.7,2567.6,0.00583703]
[1747717629067,2.2728,2567.8,2567.6,0.00583703]
[1747717629265,3.2078,2568.1,2568.0,0.77862]
[1747717629768,3.2078,2568.1,2567.9,0.77863]
[1747717629968,3.2078,2568.1,2568.0,1.2735]
[1747717630364,1.3674,2568.2,2568.0,1.2735]
[1747717630566,3.2078,2568.4,2568.2,0.77855]
[1747717630766,1.3674,2568.3,2568.2,0.77855]
[1747717631166,1.3674,2568.3,2568.1,0.77857]
[1747717631771,1.3674,2568.3,2568.2,0.77856]
[1747717631971,1.3674,2568.3,2568.1,0.77859]
[1747717632269,1.3674,2568.3,2568.0,1.2735]
[1747717632468,1.3674,2568.3,2568.1,0.77858]
[1747717632868,1.3674,2568.3,2567.6,3.21363703]
[1747717633171,1.3674,2568.3,2568.2,0.77856]
[1747717633364,1.3674,2568.3,2567.7,1.3494]
[1747717633365,3.85847426,2568.4,2567.8,1.94672]
[1747717633567,0.65067426,2568.4,2568.3,0.77853]
[1747717633970,3.85847426,2568.4,2568.1,0.77858]
[1747717634171,1.3384,2568.3,2568.2,1.3494]
[1747717635574,1.3384,2568.3,2568.0,0.77862]
[1747717635766,1.3384,2568.3,2568.0,2.05802]
[1747717638366,1.3384,2568.3,2568.0,1.2794]
[1747717638566,3.2078,2568.4,2568.3,0.77853]
[1747717638973,3.6171,2568.5,2568.3,0.77853]
[1747717639173,3.6171,2568.5,2568.3,0.77851]
[1747717639375,3.6171,2568.5,2568.4,1.348]
[1747717641369,4.39557,2568.5,2567.9,3.2078]
[1747717641569,0.77852,2568.4,2568.1,0.77858]
[1747717641776,1.2931,2568.3,2568.1,0.77858]
[1747717642369,1.2931,2568.3,2568.0,2.08571]
[1747717642570,1.2931,2568.3,2568.1,0.77859]
[1747717643775,3.2078,2568.4,2568.0,1.3071]
[1747717644779,3.2078,2568.4,2568.3,0.77853]
[1747717645474,0.00583703,2568.6,2568.0,1.3071]
[1747717645674,2.07208703,2568.6,2568.3,0.77853]
[1747717645874,2.07209703,2568.6,2568.3,0.77853]
[1747717646879,2.07209703,2568.6,2568.0,1.3071]
[1747717646880,3.98631,2568.4,2568.0,1.3071]
[1747717647077,1.2878,2568.3,2568.1,0.77858]
[1747717647473,2.06635,2568.3,2567.9,0.77863]
[1747717647674,2.06635,2568.3,2567.7,3.5534]
[1747717647975,1.2878,2568.3,2567.7,3.5534]
[1747717648180,2.06634,2568.3,2567.7,3.5534]
[1747717648381,1.2878,2568.3,2568.0,0.77861]
[1747717648574,1.2878,2568.3,2568.1,1.3694]
[1747717648971,8.36183703,2568.6,2568.1,1.3694]
[1747717648972,0.00583703,2568.6,2568.1,1.3694]
[1747717649175,1.26883703,2568.6,2568.4,0.77849]
[1747717649477,0.00583703,2568.6,2568.3,1.3694]
[1747717649676,1.26883703,2568.6,2568.3,1.3694]
[1747717649880,0.00583703,2568.6,2568.3,1.3694]
[1747717650081,0.00583703,2568.6,2568.5,0.77847]
[1747717650675,0.00583703,2568.6,2568.5,2.11907]
[1747717651182,0.00583703,2568.6,2568.5,4.85907]
[1747717651676,0.00583703,2568.6,2568.5,8.06687]
[1747717652076,0.00583703,2568.6,2568.5,13.06687]
[1747717652276,0.65067426,2568.8,2568.7,0.77841]
[1747717652481,0.65067426,2568.8,2568.7,9.13441]
[1747717653183,0.65067426,2568.8,2568.6,2.74]
[1747717653384,1.32063703,2569.0,2568.7,2.11901]
[1747717653585,1.32063703,2569.0,2568.8,2.13628]
[1747717654793,0.00583703,2569.0,2568.9,0.77835]
[1747717656187,0.00583703,2569.0,2568.9,1.3579]
[1747717657287,0.00583703,2569.0,2568.9,2.13625]
[1747717662387,0.00583703,2569.0,2568.9,7.13625]
[1747717662887,4.17717426,2569.7,2569.6,0.77814]
[1747717662888,0.65067426,2569.7,2569.6,0.77814]
[1747717663692,3.2078,2569.8,2569.7,0.77811]
[1747717663693,3.85847426,2569.8,2569.7,0.77811]
[1747717663887,5.16847426,2569.8,2569.7,0.77811]
[1747717664791,3.85847426,2569.8,2569.7,0.77811]
[1747717664989,0.65067426,2569.8,2569.7,0.77811]
[1747717665389,0.65067426,2569.8,2569.7,2.13701]
[1747717666295,0.65067426,2569.8,2569.7,7.13701]
[1747717667496,4.26e-06,2569.8,2569.7,7.13701]
[1747717667686,0.98184843,2570.0,2569.9,0.77805]
[1747717667990,0.98184843,2570.0,2569.9,12.33885]
[1747717668193,0.98184843,2570.0,2569.9,15.07885]
[1747717668591,0.98184843,2570.0,2569.9,16.40445]
[1747717668791,0.00583703,2570.0,2569.9,16.40445]
[1747717670391,0.00583703,2570.0,2569.9,7.2734]
[1747717670593,0.00583703,2570.0,2569.9,2.74]
[1747717670795,5.78385703,2570.0,2569.9,2.74]
[1747717671100,0.77814,2569.6,2569.5,0.00583703]
[1747717671297,0.77814,2569.6,2568.7,0.77841]
[1747717671298,0.77828,2569.2,2568.7,0.77841]
[1747717671485,3.2078,2569.2,2568.6,4.4813]
[1747717671691,1.3422,2569.1,2568.9,0.77834]
[1747717671892,1.3422,2569.1,2568.8,0.77836]
[1747717672196,2.4277,2569.1,2568.9,0.77835]
[1747717672394,2.4277,2569.1,2568.8,0.77837]
[1747717672598,2.4277,2569.1,2568.7,1.37633703]
[1747717672895,2.4277,2569.1,2568.9,0.77833]
[1747717673095,2.4277,2569.1,2568.7,1.37633703]
[1747717673299,2.4277,2569.1,2569.0,0.77832]
[1747717673493,2.4277,2569.1,2568.9,0.77834]
[1747717673893,2.4277,2569.1,2569.0,0.77832]
[1747717674601,2.4277,2569.1,2568.7,1.37633703]
[1747717675100,0.00583703,2570.0,2569.4,0.7782]
[1747717675399,2.18973703,2570.0,2569.9,0.77805]
[1747717675598,0.00583703,2570.0,2569.9,0.77805]
[1747717676201,0.00583703,2570.0,2569.9,3.51805]
[1747717677906,1.062,2570.6,2569.9,14.2818]
[1747717678205,2.3199,2570.6,2570.5,0.77787]
[1747717679603,1.2579,2570.6,2570.5,0.77787]
[1747717680106,1.2579,2570.6,2570.5,3.51787]
[1747717680302,0.00583703,2570.8,2570.7,0.77781]
[1747717680606,1.26373703,2570.8,2570.7,0.77781]
[1747717681507,4.47153703,2570.8,2570.4,3.51789]
[1747717681807,1.26373703,2570.8,2570.5,0.77785]
[1747717682610,1.26373703,2570.8,2570.3,3.21363703]
[1747717682810,1.26373703,2570.8,2570.4,1.2542]
[1747717683010,1.26373703,2570.8,2570.7,0.77781]
[1747717683206,1.26373703,2570.8,2570.6,0.77782]
[1747717683411,4.47153703,2570.8,2570.4,1.2542]
[1747717683707,4.47153703,2570.8,2570.6,0.77783]
[1747717683917,4.47153703,2570.8,2570.5,0.77785]
[1747717684107,5.24931703,2570.8,2570.4,0.77788]
[1747717684415,0.77781,2570.7,2570.4,0.77788]
[1747717684609,1.3724,2570.6,2570.4,0.77788]
[1747717684806,1.3724,2570.6,2570.3,3.21363703]
[1747717685013,4.2791,2570.5,2570.3,0.00583703]
[1747717685312,1.3724,2570.4,2570.3,0.00583703]
[1747717685508,1.3724,2570.4,2570.3,0.78376703]
[1747717687309,1.0713,2570.5,2570.4,0.7779]
[1747717687503,1.2484,2570.7,2570.4,1.3254]
[1747717687705,1.2484,2570.7,2570.6,0.77784]
[1747717690014,1.2484,2570.7,2570.5,0.77785]
[1747717690512,1.2484,2570.7,2570.6,0.77784]
[1747717691109,3.21363703,2570.8,2570.6,0.77784]
[1747717691413,3.21363703,2570.8,2570.3,3.21363703]
[1747717691605,1.2453,2570.7,2570.6,0.77783]
[1747717691809,1.2453,2570.7,2570.5,0.77785]
[1747717692110,1.2453,2570.7,2570.5,0.77784]
[1747717692311,1.2453,2570.7,2570.6,0.77784]
[1747717692509,1.2453,2570.7,2570.6,2.02514]
[1747717696114,1.2453,2570.7,2570.6,0.77784]
[1747717697518,2.328,2570.7,2570.6,0.77784]
[1747717697718,2.328,2570.7,2570.5,0.77786]
[1747717697920,2.328,2570.7,2570.6,0.77784]
[1747717698120,2.328,2570.7,2570.4,1.3696]
[1747717699108,2.328,2570.7,2570.5,0.77785]
[1747717699509,2.328,2570.7,2570.3,0.00583703]
[1747717699919,2.328,2570.7,2570.4,0.77788]
[1747717700114,2.328,2570.7,2570.5,0.77787]
[1747717700318,2.328,2570.7,2570.3,0.00583703]
[1747717700319,2.328,2570.7,2570.4,0.77787]
[1747717700519,2.328,2570.7,2570.5,0.77787]
[1747717702221,0.7779,2570.4,2570.3,0.00583703]
[1747717702717,5.7779,2570.4,2570.3,0.00583703]
[1747717702915,7.0987,2570.4,2570.3,0.00583703]
[1747717707424,2.0987,2570.4,2570.3,0.00583703]
[1747717710831,0.77815,2569.6,2569.4,3.2078]
[1747717711121,0.77821,2569.4,2569.2,0.77826]
[1747717711423,0.7782,2569.4,2569.1,1.3733]
[1747717711623,1.2943,2569.3,2569.2,0.77824]
[1747717713625,1.2943,2569.3,2569.1,2.15158]
[1747717714226,1.2943,2569.3,2569.2,1.3238]
[1747717716320,0.77829,2569.1,2569.0,0.00583703]
[1747717718134,0.77828,2569.2,2569.0,0.00583703]
[1747717718434,1.3561,2569.1,2569.0,0.00583703]
[1747717718937,2.13439,2569.1,2569.0,0.00583703]
[1747717719135,1.3561,2569.1,2569.0,0.00583703]
[1747717719633,2.13439,2569.1,2569.0,0.00583703]
[1747717720331,1.3561,2569.1,2569.0,0.00583703]
[1747717720533,1.11603703,2569.5,2569.4,0.7782]
[1747717720738,0.00583703,2569.5,2569.4,0.7782]
[1747717721037,0.00583703,2569.5,2569.4,2.0313]
[1747717722238,0.00583703,2569.5,2569.4,9.7713]
[1747717724439,0.00583703,2569.5,2569.4,4.7713]
[1747717729947,0.00583703,2569.5,2569.4,3.9931]
[1747717730144,0.00583703,2569.5,2569.4,1.2531]
[1747717731045,0.00583703,2569.5,2569.4,2.0313]
[1747717733243,0.00583703,2569.5,2569.4,4.7713]
[1747717734252,0.00583703,2569.5,2569.4,2.0313]
[1747717741262,0.7782,2569.4,2569.1,1.1178]
[1747717741465,1.3699,2569.3,2569.1,10.20107]
[1747717742061,0.77829,2569.1,2569.0,0.00583703]
[1747717742265,4.5777,2569.3,2569.0,0.00583703]
[1747717742266,1.86778,2569.2,2569.0,0.00583703]
[1747717742466,1.3353,2569.1,2569.0,0.00583703]
[1747717742869,1.0895,2569.2,2569.1,0.77829]
[1747717743059,1.0895,2569.2,2569.1,2.09319]
[1747717743462,1.0895,2569.2,2569.1,1.3149]
[1747717743666,2.4248,2569.2,2569.1,1.3149]
[1747717743867,2.4248,2569.2,2569.1,0.77829]
[1747717745167,1.0895,2569.2,2569.1,2.04829]
[1747717747063,3.2078,2569.3,2569.2,0.77826]
[1747717747865,3.2078,2569.3,2569.1,2.04827]
[1747717748271,3.2078,2569.3,2569.2,1.2544]
[1747717748569,3.2078,2569.3,2569.2,2.03266]
[1747717750067,3.2078,2569.3,2569.0,0.00583703]
[1747717750371,1.2737,2569.2,2569.1,0.77829]
[1747717750566,1.2737,2569.2,2569.0,0.00583703]
[1747717750870,1.0818,2569.1,2569.0,0.00583703]
[1747717751066,1.0818,2569.1,2569.0,0.78415703]
[1747717752472,1.2737,2569.2,2569.1,0.77829]
[1747717752674,3.2078,2569.3,2569.2,0.77826]
[1747717754572,0.00583703,2569.5,2569.4,0.7782]
[1747717755068,0.00583703,2569.5,2569.4,2.74]
[1747717755575,2.13870703,2569.5,2569.4,2.74]
[1747717756271,1.36053703,2569.5,2569.4,0.7782]
[1747717759065,0.00583703,2569.5,2569.4,0.7782]
[1747717759573,0.78401703,2569.5,2569.2,0.77824]
[1747717759773,2.42783703,2569.5,2569.2,0.77824]
[1747717759974,2.42783703,2569.5,2569.3,1.2544]
[1747717760277,2.42783703,2569.5,2569.4,0.7782]
[1747717763174,0.00583703,2569.5,2569.4,0.7782]
[1747717764275,0.00583703,2569.5,2569.4,11.8242]
[1747717766972,1.0874,2570.1,2570.0,0.77802]
[1747717768078,1.0874,2570.1,2570.0,3.51802]
[1747717769183,1.0874,2570.1,2569.9,1.2988]
[1747717769588,1.3766,2570.0,2569.9,2.07685]
[1747717770274,1.3766,2570.0,2569.9,1.2988]
[1747717770479,4.5844,2570.0,2569.7,0.77809]
[1747717770681,1.0568,2569.9,2569.8,0.77808]
[1747717770882,2.4334,2569.9,2569.8,0.77808]
[1747717771285,3.2078,2570.0,2569.9,0.77805]
[1747717771582,3.2078,2570.0,2569.9,2.11485]
[1747717773388,3.2078,2570.0,2569.9,4.85485]
[1747717773889,3.2078,2570.0,2569.9,4.0768]
[1747717774081,4.5842,2570.0,2569.9,4.0768]
[1747717774287,4.5842,2570.0,2569.9,1.3368]
[1747717774885,4.5842,2570.0,2569.8,0.77807]
[1747717775090,4.5842,2570.0,2569.9,0.77805]
[1747717775589,4.5842,2570.0,2569.8,1.2978]
[1747717775893,4.5842,2570.0,2569.8,2.07586]
[1747717776390,4.5842,2570.0,2569.9,0.77805]
[1747717776694,4.5842,2570.0,2569.8,2.07586]
[1747717776994,4.5842,2570.0,2569.9,0.77805]
[1747717777390,1.3764,2570.0,2569.9,0.77805]
[1747717777893,1.0874,2570.1,2570.0,0.77802]
[1747717778091,1.0568,2570.2,2570.0,0.77802]
[1747717778288,1.0568,2570.2,2570.1,2.07579]
[1747717778494,2.3293,2570.2,2570.0,0.778]
[1747717778789,2.3293,2570.2,2569.0,4.36662703]
[1747717778994,3.2078,2569.9,2569.6,2.04891]
[1747717779190,2.316,2569.8,2569.7,0.77808]
[1747717779489,1.0568,2570.2,2570.1,0.77799]
[1747717780690,3.21363703,2570.3,2570.2,0.77796]
[1747717781296,0.00583703,2570.3,2570.2,0.77796]
[1747717781495,0.00583703,2570.3,2570.2,2.09716]
[1747717781997,0.00583703,2570.3,2570.2,10.69094453]
[1747717782499,0.00583703,2570.3,2570.2,2.40394453]
[1747717782799,0.9760114,2570.9,2570.2,14.91198453]
[1747717783097,0.9760114,2570.9,2570.6,0.77781]
[1747717783293,0.9760114,2570.9,2570.7,1.3192]
[1747717783494,0.9760114,2570.9,2570.8,9.06378]
[1747717783692,0.9760114,2570.9,2570.8,1.85148]
[1747717783892,0.00381098,2571.1,2571.0,0.77772]
[1747717784093,0.00381098,2571.1,2571.0,3.2078]
[1747717784293,0.00381098,2571.1,2571.0,2.74]
[1747717784599,3.49491098,2571.1,2571.0,2.74]
[1747717784798,3.49491098,2571.1,2571.0,4.0424]
[1747717785000,2.25071098,2571.1,2571.0,4.0424]
[1747717785200,0.00381098,2571.1,2571.0,4.82012]
[1747717785699,0.00381098,2571.1,2571.0,13.10612]
[1747717788699,0.00381098,2571.1,2571.0,13.4935707]
[1747717789105,0.00381098,2571.1,2571.0,12.3284]
[1747717789300,0.00381098,2571.1,2571.0,4.0424]
[1747717789499,2.08390098,2571.1,2571.0,2.74]
[1747717789907,1.30621098,2571.1,2571.0,2.74]
[1747717790203,1.30621098,2571.1,2570.9,8.285]
[1747717791305,2.08390098,2571.1,2570.9,8.285]
[1747717792806,1.30621098,2571.1,2570.9,9.06273]
[1747717793302,1.30621098,2571.1,2571.0,0.77772]
[1747717793507,1.30621098,2571.1,2570.9,9.06273]
[1747717793803,1.30621098,2571.1,2571.0,0.77772]
[1747717795008,1.30621098,2571.1,2570.9,9.06273]
[1747717795209,1.30621098,2571.1,2571.0,0.77772]
[1747717795402,1.30621098,2571.1,2571.0,2.13012]
[1747717795709,0.00381098,2571.1,2571.0,2.13012]
[1747717796200,0.00381098,2571.1,2571.0,4.87012]
[1747717796601,0.00381098,2571.1,2571.0,5.97712]
[1747717797411,0.00381098,2571.1,2571.0,10.97712]
[1747717799411,0.00381098,2571.1,2571.0,5.97712]
[1747717801221,1.123,2571.7,2571.1,1.94418]
[1747717801417,1.123,2571.7,2571.5,0.77755]
[1747717801714,1.123,2571.7,2571.6,1.3029]
[1747717802016,1.123,2571.7,2571.6,2.08044]
[1747717802213,1.2494,2571.8,2571.7,0.77751]
[1747717802620,1.0849,2572.4,2572.0,0.7774]
[1747717802815,1.297,2572.2,2572.0,8.267]
[1747717803008,1.297,2572.2,2572.0,9.512]
[1747717803207,1.297,2572.2,2572.1,0.77739]
[1747717803819,3.2078,2572.7,2572.0,14.66328]
[1747717804022,3.2078,2572.7,2572.6,0.77723]
[1747717804218,1.94247914,2572.8,2572.7,0.7772]
[1747717804517,0.64547914,2572.8,2572.7,0.7772]
[1747717804911,0.64547914,2572.8,2572.7,2.0222]
[1747717805115,0.64547914,2572.8,2572.7,5.23]
[1747717805314,0.64547914,2572.8,2572.7,10.23]
[1747717805921,7.30337914,2573.5,2572.7,11.39582]
[1747717806218,7.30337914,2573.5,2572.7,4.4528]
[1747717806421,7.30337914,2573.5,2573.3,0.777]
[1747717806617,7.30337914,2573.5,2573.3,9.041]
[1747717806921,7.30337914,2573.5,2573.3,8.264]
[1747717807419,0.77701,2573.4,2573.2,8.264]
[1747717807618,1.2847,2573.3,2573.0,9.0411]
[1747717807925,1.2847,2573.3,2572.8,1.2932]
[1747717808122,3.2078,2572.9,2572.5,0.77724]
[1747717808326,3.4031,2572.8,2572.4,8.264]
[1747717808824,3.4031,2572.8,2572.4,9.04128]
[1747717808825,3.2078,2572.7,2572.4,9.04128]
[1747717809020,1.3592,2572.6,2572.4,9.04128]
[1747717809215,1.3592,2572.6,2572.3,8.264]
[1747717809521,3.2078,2572.4,2572.3,8.264]
[1747717809722,3.2078,2572.4,2572.3,0.77732]
[1747717810726,3.2078,2572.4,2572.0,5.5546]
[1747717810727,3.2078,2572.4,2572.2,0.77734]
[1747717811029,2.4934,2572.3,2572.2,0.77734]
[1747717813037,3.21392281,2572.7,2572.6,0.77723]
[1747717813737,0.00612281,2572.7,2572.6,2.13973]
[1747717814535,2.81e-06,2572.7,2572.6,2.13973]
[1747717814838,2.81e-06,2572.7,2572.6,7.13973]
[1747717815228,2.4386,2573.8,2572.6,18.99461]
[1747717815435,2.4386,2573.8,2573.3,3.2078]
[1747717815630,1.1068,2573.7,2573.4,8.264]
[1747717815829,1.3469,2573.6,2573.5,0.77696]
[1747717816029,1.3469,2573.6,2573.4,8.264]
[1747717816435,4.5547,2573.6,2573.4,9.04099]
[1747717816633,1.3469,2573.6,2573.5,0.77696]
[1747717816832,1.3469,2573.6,2573.4,9.04097]
[1747717817338,1.3469,2573.6,2573.5,0.77696]
[1747717818335,4.5547,2573.6,2573.3,2.14284703]
[1747717818543,4.5547,2573.6,2573.3,0.00583703]
[1747717820036,5.33164,2573.6,2573.3,0.78285703]
[1747717820236,0.77696,2573.5,2573.3,0.00583703]
[1747717820437,5.33165,2573.6,2573.3,0.78285703]
[1747717821032,0.77699,2573.4,2573.3,0.00583703]
[1747717821334,0.77699,2573.4,2572.2,1.94335]
[1747717821335,0.77712,2573.0,2572.3,3.2078]
[1747717821540,9.3688,2573.7,2572.8,0.77717]
[1747717821541,2.2091,2572.9,2572.8,0.77717]
[1747717821734,6.706,2572.9,2572.8,0.77717]
[1747717822235,11.706,2572.9,2572.5,8.261]
[1747717822437,7.48317,2572.9,2572.6,0.77723]
[1747717823142,6.706,2572.9,2572.7,0.7772]
[1747717823441,2.2091,2572.9,2572.8,0.77717]
[1747717824141,3.4982,2572.9,2572.8,0.77717]
[1747717824549,2.2091,2572.9,2572.8,0.77717]
[1747717824946,0.00583703,2573.0,2572.9,0.77714]
[1747717825242,0.00583703,2573.0,2572.9,2.04384]
[1747717826037,0.78295703,2573.0,2572.8,9.03816]
[1747717826242,1.2796,2572.9,2572.8,8.261]
[1747717826444,1.2796,2572.9,2572.8,9.03817]
[1747717826839,0.00583703,2573.0,2572.9,0.77714]
[1747717827040,0.00583703,2573.0,2572.9,2.04384]
[1747717828145,0.00583703,2573.0,2572.9,4.78384]
[1747717829147,0.00583703,2573.0,2572.9,8.245]
[1747717829341,0.00583703,2573.0,2572.9,9.02214]
[1747717829836,0.00583703,2573.0,2572.9,8.245]
[1747717830041,0.00583703,2573.0,2572.9,0.77714]
[1747717830242,1.25083703,2573.0,2572.9,0.77714]
[1747717831040,2.02794703,2573.0,2572.8,0.77716]
[1747717831244,2.0994,2572.9,2572.8,0.77716]
[1747717831443,3.3444,2572.9,2572.8,2.11186]
[1747717832144,3.3444,2572.9,2572.8,0.77716]
[1747717834048,0.77719,2572.8,2572.6,1.3347]
[1747717834248,0.77718,2572.8,2572.6,2.11192]
[1747717834548,0.77715,2572.9,2572.7,0.77718]
[1747717834743,1.95803703,2573.0,2572.5,8.245]
[1747717834946,3.2078,2572.7,2572.4,0.00583703]
[1747717835248,3.98502,2572.7,2572.4,0.00583703]
[1747717835440,0.77726,2572.5,2572.4,0.00583703]
[1747717836746,5.77726,2572.5,2572.4,0.00583703]
[1747717837138,0.77744,2572.0,2571.8,3.2078]
[1747717837344,3.2078,2572.2,2571.7,9.02348]
[1747717837543,0.77743,2572.0,2571.8,1.264]
[1747717837740,0.77743,2572.0,2571.8,2.04147]
[1747717837941,3.0576,2572.1,2571.8,2.04147]
[1747717838147,4.151,2572.1,2571.9,0.77744]
[1747717838348,4.151,2572.1,2571.9,2.04144]
[1747717838548,3.3736,2572.1,2572.0,0.77742]
[1747717838752,3.3736,2572.1,2572.0,2.04142]
[1747717838947,3.21363703,2572.2,2572.1,0.77739]
[1747717839250,3.21363703,2572.2,2572.1,1.79549]
[1747717839450,3.21363703,2572.2,2572.1,2.86869]
[1747717839652,0.00583703,2572.2,2572.1,2.86869]
[1747717840453,0.00583703,2572.2,2572.1,6.07649]
[1747717841352,0.00583703,2572.2,2572.1,14.32349]
[1747717841747,1.0396,2572.9,2572.8,0.77717]
[1747717842143,1.0966,2573.3,2572.6,5.15083]
[1747717842349,1.0966,2573.3,2573.2,0.77705]
[1747717843453,1.0966,2573.3,2573.1,1.3304]
[1747717843454,0.64547914,2573.4,2573.1,1.3304]
[1747717843856,0.64547914,2573.4,2573.2,0.77703]
[1747717844154,0.64547914,2573.4,2573.3,1.3304]
[1747717844659,0.64547914,2573.4,2573.3,2.10742]
[1747717845362,5.5476,2573.5,2573.3,1.3304]
[1747717845557,5.5476,2573.5,2573.3,2.10741]
[1747717845873,3.2078,2573.5,2573.4,0.77699]
[1747717846157,3.17228,2573.8,2573.5,0.77696]
[1747717846457,2.3954,2573.8,2573.6,2.03762]
[1747717846658,5.04224,2573.9,2573.7,2.0376]
[1747717846854,5.04224,2573.9,2573.8,1.2607]
[1747717848158,4.2654,2573.9,2573.3,10.3648]
[1747717848359,1.3043,2573.8,2573.4,1.2607]
[1747717848765,4.2654,2573.9,2573.4,1.2607]
[1747717848955,3.2078,2573.9,2573.8,0.77687]
[1747717849762,3.2078,2573.9,2573.8,2.04897]
[1747717852467,3.98464,2573.9,2573.8,1.2721]
[1747717852763,3.2078,2573.9,2573.8,2.04897]
[1747717853367,3.2078,2573.9,2573.8,3.06637]
[1747717854262,4.2762,2574.3,2574.2,0.77675]
[1747717854463,4.2762,2574.3,2573.9,8.244]
[1747717854662,4.2762,2574.3,2573.9,9.2626]
[1747717854962,4.2762,2574.3,2573.9,11.33752]
[1747717855158,0.77675,2574.2,2573.9,11.33752]
[1747717855467,0.77678,2574.1,2573.9,11.33752]
[1747717855665,0.77678,2574.1,2573.9,10.31892]
[1747717856167,3.98461,2574.0,2573.9,8.244]
[1747717856357,0.77685,2573.9,2573.7,2.07499]
[1747717856561,0.77685,2573.9,2573.7,10.31899]
[1747717856963,3.2078,2574.0,2573.8,1.2981]
[1747717857268,3.2078,2574.0,2573.9,0.77684]
[1747717858365,4.2762,2574.3,2573.8,1.2981]
[1747717858571,5.05292,2574.3,2574.1,0.77676]
[1747717858868,5.05292,2574.3,2574.2,1.2642]
[1747717860269,3.2078,2574.6,2574.2,1.2642]
[1747717860570,3.2078,2574.6,2574.2,3.3482]
[1747717860873,3.2078,2574.6,2574.2,4.12495]
[1747717861065,0.77672,2574.3,2574.2,1.2642]
[1747717861466,3.2078,2574.6,2574.3,0.77672]
[1747717861665,0.77668,2574.5,2574.3,0.77672]
[1747717861972,0.77671,2574.4,2574.2,2.04095]
[1747717862174,3.98452,2574.3,2574.2,1.2642]
[1747717862373,0.77684,2574.0,2573.8,2.86087]
[1747717862573,0.77679,2574.1,2573.9,10.32902]
[1747717862775,2.94017,2574.2,2574.0,0.77681]
[1747717862972,2.94017,2574.2,2574.0,2.10201]
[1747717863175,0.77667,2574.5,2574.3,0.7767]
[1747717863374,4.2256,2574.6,2574.1,0.00583703]
[1747717863577,4.2256,2574.6,2574.5,0.77666]
[1747717863771,5.00223,2574.6,2574.4,0.77667]
[1747717863972,0.77668,2574.5,2574.2,1.3254]
[1747717864473,1.87608,2574.5,2574.2,1.3254]
[1747717864675,1.0994,2574.5,2574.4,0.77669]
[1747717865172,3.2078,2574.6,2574.5,0.77666]
[1747717865378,2.1172,2575.0,2574.9,0.77654]
[1747717865675,2.1172,2575.0,2574.6,1.3254]
[1747717865878,5.325,2575.0,2574.6,1.3254]
[1747717866073,0.77658,2574.8,2574.6,2.10203]
[1747717866277,0.77658,2574.8,2574.6,1.3254]
[1747717866575,3.98436,2574.9,2574.6,2.10202]
[1747717866775,0.77657,2574.8,2574.6,2.10202]
[1747717866974,3.2078,2574.9,2574.1,8.23183703]
[1747717867275,3.98445,2574.6,2574.3,0.77671]
[1747717867478,2.1614,2574.5,2574.3,0.77671]
[1747717867878,2.1614,2574.5,2574.1,0.00583703]
[1747717868072,3.98454,2574.3,2574.1,0.00583703]
[1747717868383,2.1614,2574.5,2574.1,0.00583703]
[1747717868770,2.1614,2574.5,2574.4,0.77669]
[1747717868971,2.1614,2574.5,2574.2,1.3744]
[1747717869571,2.93808,2574.5,2574.3,0.77671]
[1747717869779,2.93808,2574.5,2574.4,1.3744]